[Event "Presidents Day IM-Norm 2024"]
[Site "Santa Clara"]
[Date "2024.02.19"]
[Round "8.5"]
[White "Vatsal Singhania"]
[Black "Guo, Ethan"]
[Result "1/2-1/2"]
[ECO "B85"]
[WhiteElo "2252"]
[BlackElo "2099"]
[Annotator "TA"]
[PlyCount "101"]
[EventDate "2024.02.13"]
[EventType "tourn"]
[EventCountry "USA"]
[SourceTitle "playchess.com"]
[Source "ChessBase"]
[SourceQuality "1"]
[TimeControl "5400+30"]

{[%evp 23,101,8,3,1,6,-3,-16,-24,0,-31,-8,-31,0,-13,0,-74,-41,-54,-22,-51,-56,-112,-97,-112,-94,-115,-100,-138,-120,-76,-68,-154,-114,-190,-140,-324,-339,-285,303,-203,-198,-315,0,0,2025,-464,-470,-546,-511,-1301,-495,-472,-446,-426,-301,-645,-643,-637,-642,-620,-508,-795,-62,-64,-67,-61,0,0,36,36,36,36,36,36,36,36,36,36,36,36]} 1. e4 {[%emt 0:00:02]} c5 {[%emt 0:16:56]} 2. Nf3 {[%emt 0:00:22]} d6 {[%emt 0:00:05]} 3. d4 {[%emt 0:00:16]} cxd4 {[%emt 0:00:05]} 4. Nxd4 {[%emt 0:00:03]} Nf6 {[%emt 0:00:03]} 5. Nc3 {[%emt 0:00:05]} a6 {[%emt 0:00:09]} 6. Be2 {[%emt 0:00:03]} e6 {[%emt 0:00:05]} 7. O-O {[%emt 0:00:05]} Be7 {[%emt 0:00:07]} 8. f4 {[%emt 1:33:34]} O-O {[%emt 0:00:06]} 9. Be3 {[%emt 0:00:00]} Nc6 {[%emt 0:00:08]} 10. a4 {[%emt 0:00:00]} Qc7 {[%emt 0:00:04]} 11. Kh1 {[%emt 0:00:00]} Nxd4 {[%emt 0:00:07]} 12. Qxd4 {[%emt 0:00:00]} Bd7 {[%emt 0:00:12]} 13. Bf3 {[%emt 0:00:00]} e5 {[%emt 0:03:36]} 14. Qd2 {[%emt 0:00:00]} b5 {[%emt 0:01:02]} 15. a5 {[%emt 0:00:00] Die Stellung ist ausgeglichen.} Rac8 {[%emt 0:06:37]} 16. Bb6 {[%emt 0:00:00]} Qc6 {[%emt 0:02:48]} 17. Rac1 {[%emt 0:00:00]} Qb7 {[%emt 0:09:36]} 18. Rce1 {[%emt 0:00:00]} Bc6 {[%emt 0:04:51]} 19. f5 {[%emt 0:00:00]} (19. fxe5 $11 dxe5 20. Nd5) 19... Nd7 {[%emt 0:02:30]} 20. Be3 {[%emt 0:00:00]} b4 {[%emt 0:10:24]} 21. Na2 {[%emt 0:00:00]} Rb8 {[%emt 0:00:21][%cal Of8c8]} (21... Bxe4 22. Bxe4 Qxe4 23. Nxb4 $14) 22. Nc1 {[%emt 0:00:00]} (22. c3 $15) 22... Nc5 $17 {[%emt 0:01:00]} (22... Bxe4 23. Bxe4 Qxe4 24. Ba7 $11) 23. Bxc5 {[%emt 0:00:00]} dxc5 {[%emt 0:00:09]} 24. Nd3 {[%emt 0:00:00]} Qc7 $36 {[%emt 0:00:59][%cal Of8d8][%mdl 2048] Schwarz hat starke Initiative.} 25. b3 {[%emt 0:00:00]} Bb5 {[%emt 0:00:54][%cal Of8d8]} (25... Qxa5 $6 26. Nxe5 Bb5 27. Nc4 $11) 26. Be2 {[%emt 0:00:00]} f6 {[%emt 0:02:00]} (26... Qxa5 27. Nxe5 Bh4 28. Rd1 $11) 27. Rf3 {[%emt 0:00:00]} (27. Nb2 $15) 27... Rfd8 {[%emt 0:03:42][%cal Oc5c4]} (27... Qxa5 28. Nb2 $17) 28. Rg3 {[%emt 0:00:00]} (28. Qe3 $17) 28... Kh8 {[%emt 0:01:10]} (28... Qxa5 29. Qh6 Bf8 30. Qxf6 $16) ({Günstiger ist} 28... c4 $19 29. Qh6 Bf8) 29. Rh3 {[%emt 0:00:00]} (29. Qe3 $17) 29... c4 $1 $19 {[%emt 0:01:16]} (29... Qxa5 30. Qe3 $19) 30. bxc4 {[%emt 0:00:00] [#]} Qc6 {[%emt 0:34:28][%mdl 8192]} 31. c5 $4 {[%mdl 8192]} (31. cxb5 $18 {nur so kann Weiss gewinnen.} Qxb5 32. Ra1) 31... Qxc5 {[%emt 0:00:00]} (31... Qxe4 32. Bf3 Qd4 (32... Qxf5 33. Be4 $11) 33. Qxb4 $17) 32. Bh5 {[%emt 0:00:00]} (32. Nxc5 {ist wohl besser.} Rxd2 33. Bxb5 Rxb5 (33... Bxc5 34. Bd3 $17) 34. Nb3 Rxc2 35. g4) 32... Qc4 $2 {[%emt 0:00:00]} (32... Rbc8 $19 33. Rc1 Qc3 34. Qxc3 Rxc3) 33. Bg6 $11 {[%emt 0:00:00]} Bf8 $2 {[%emt 0:00:00][%mdl 8192]} (33... h6 $11 34. Rxh6+ gxh6 35. Qxh6+ Kg8) 34. Qe2 $4 {[%emt 0:00:00][%mdl 8192]} (34. Rxh7+ $18 {war der einzige Gewinnzug.} Kg8 35. Qe2) 34... h6 $19 {[%emt 0:00:00]} 35. Qg4 {[%emt 0:00:00]} Rbc8 (35... Qxc2 36. Bf7 Qd2 (36... Bxd3 37. Rxh6+ gxh6 38. Qg8#) 37. Ree3 $14) 36. c3 (36. Bh5 $142) 36... Qxc3 {[%emt 0:00:00]} (36... bxc3 $142 37. Nc1 c2) 37. Bf7 {[%emt 0:00:00][%cal Oh3h6] [#] Weiss will mit Rxh6+! Matt setzen.} Qd2 {[%emt 0:00:00]} ({Schwächer ist} 37... Bxd3 38. Rxh6+ gxh6 39. Qg8#) 38. Rd1 {[%emt 0:00:00]} Qg5 {[%emt 0:00:00]} ({Nicht} 38... Qc2 39. Rxh6+ gxh6 40. Qg8#) 39. Qe2 {[%emt 0:00:00]} (39. Qxg5 fxg5 40. Bd5) 39... Rc3 {[%emt 0:00:00] ...Bxd3 ist eine echte Drohung.} 40. Bd5 {[%emt 0:00:00]} b3 {[%emt 0:00:00] Und ...Rc2 würde nun gewinnen.} 41. Rg3 {[%emt 0:00:00]} Bxd3 {[%emt 0:00:00]} 42. Qb2 {[%emt 0:00:00]} (42. Rgxd3 $142 Rc2 43. Qf1) 42... Qh5 $2 {[%emt 0:00:00]} (42... Rc2 $19 {Zielt auf ...Bxe4 ab.} 43. Qxb3 Bxe4 44. Rxg5 fxg5) 43. Rgxd3 $15 {[%emt 0:00:00]} Rxd3 {[%emt 0:00:00]} 44. Rxd3 {[%emt 0:00:00]} Rc8 {[%emt 0:00:00]} (44... Qh4 $15 45. Qb1 b2) 45. Bxb3 $11 {[%emt 0:00:00]} Qh4 {[%emt 0:00:00]} 46. Qe2 {[%emt 0:00:00] Lässt Qe1+ nicht zu. Weiß steht etwas besser.} Rc1+ {[%emt 0:00:00]} 47. Rd1 {[%emt 0:00:00]} Rxd1+ {[%emt 0:00:00]} 48. Bxd1 {[%emt 0:00:00][%cal Og2g3]} Bc5 {[%emt 0:00:00]} 49. g3 {[%emt 0:00:00]} Qg5 {[%emt 0:00:00]} 50. Kg2 {[%emt 0:00:00][%cal Og2h3]} Qe3 {[%emt 0:00:00]} 51. Qxe3 {[%emt 0:21:30] Weiß entkommt ins Remis.   Gewichteter Fehlerwert: Weiß=0.99/Schwarz=0.70.  Verlustzug:     	Weiß=1     	Schwarz=1     Gewinn verpasst:   	Weiß=2     	Schwarz=2     Fehler:       	Weiß=7     	Schwarz=3     Ungenau:       	Weiß=3     	Schwarz=3     OK:         	Weiß=12    	Schwarz=8     Bester:       	Weiß=3     	Schwarz=1     Stark:        	---       	Schwarz=1} ({Viel schwächer wäre} 51. Qxa6 Qg1+ 52. Kh3 Qxd1 $17) 1/2-1/2

[Event "Presidents Day IM-Norm 2024"]
[Site "Santa Clara"]
[Date "2024.02.20"]
[Round "9.1"]
[White "Guo, Ethan"]
[Black "Yan, Nathan"]
[Result "1/2-1/2"]
[ECO "C84"]
[WhiteElo "2099"]
[BlackElo "2311"]
[Annotator "TA"]
[PlyCount "47"]
[EventDate "2024.02.13"]
[EventType "tourn"]
[EventCountry "USA"]
[SourceTitle "playchess.com"]
[Source "ChessBase"]
[SourceQuality "1"]
[TimeControl "5400+30"]

{[%evp 14,47,21,0,22,0,32,20,27,16,22,2,17,0,13,-26,16,-47,-49,-116,-117,-119,-114,-136,-136,-222,-214,-236,-67,-81,8,11,18,13,58,-62]} 1. e4 {[%emt 0:08:46]} e5 {[%emt 0:00:08]} 2. Nf3 {[%emt 0:00:07]} Nc6 {[%emt 0:00:21]} 3. Bb5 {[%emt 0:00:04][%cal Bf1b5,Bb5a4,Ba4b3][%mdl 32]} a6 {[%emt 0:00:35]} 4. Ba4 {[%emt 0:00:03]} Nf6 {[%emt 0:00:12]} 5. O-O {[%emt 0:00:08]} Be7 {[%emt 0:01:26]} 6. d3 {[%emt 0:00:25]} b5 {[%emt 0:00:26]} 7. Bb3 {[%emt 0:00:09]} d6 {[%emt 0:00:04]} 8. h3 {[%emt 0:00:33]} O-O {[%emt 0:01:03]} 9. a3 {[%emt 0:00:08]} Be6 {[%emt 0:01:20]} 10. Bxe6 {[%emt 0:00:20]} fxe6 {[%emt 0:00:02] Die Stellung ist ausgeglichen.} 11. Re1 {[%emt 0:00:20]} Qe8 {[%emt 0:01:09]} 12. Nbd2 {[%emt 0:04:30]} Nh5 {[%emt 0:01:14]} 13. Nf1 {[%emt 0:00:41]} Qg6 {[%emt 0:01:15]} 14. N3h2 {[%emt 0:01:45]} Nf4 {[%emt 0:04:45]} 15. Qg4 {[%emt 0:02:10]} (15. Bxf4 $11 Rxf4 16. Nd2) 15... Qxg4 {[%emt 0:10:13]} 16. Nxg4 {[%emt 0:01:11]} ({Besser ist} 16. hxg4 $15 Nd4 17. Bxf4 exf4 18. Rac1) 16... Nd4 $17 {[%emt 0:00:06]} 17. Bxf4 {[%emt 0:00:49]} exf4 {[%emt 0:00:12]} 18. Rac1 {[%emt 0:00:46]} f3 {[%emt 0:03:05]} 19. Ng3 {[%emt 0:00:09]} (19. Nd2 $17) 19... Bg5 $19 {[%emt 0:06:16]} 20. Ne3 {[%emt 0:00:11] Weiss hat schwache schwarze Felder} Bf4 $2 {[%emt 0:03:48]} ({Günstiger ist} 20... fxg2 $19 {Droht stark ...Nf3+.} 21. Kxg2 Nf3) 21. c3 $15 {[%emt 0:03:10] [#]} Ne2+ {[%emt 0:06:48]} 22. Nxe2 $11 {[%emt 0:00:09]} Bxe3 {[%emt 0:00:06]} 23. Rc2 {[%emt 0:00:14]} Bb6 {[%emt 0:03:24]} 24. Ng3 {[%emt 0:00:48] Gewichteter Fehlerwert: Weiß=0.28 (präzise) /Schwarz=0.39.  Gewinn verpasst:   	---       	Schwarz=1     Fehler:       	Weiß=4     	Schwarz=1     Ungenau:       	Weiß=1     	Schwarz=3     OK:         	Weiß=4     	Schwarz=3     Bester:       	Weiß=2     	Schwarz=1} ({Weiss braucht} 24. Nd4 $14) 1/2-1/2

[Event "Presidents Day IM-Norm 2024"]
[Site "Santa Clara"]
[Date "2024.02.20"]
[Round "9.2"]
[White "Liu, Patrick"]
[Black "Vatsal Singhania"]
[Result "1/2-1/2"]
[ECO "E04"]
[WhiteElo "2130"]
[BlackElo "2252"]
[Annotator "TA"]
[PlyCount "45"]
[EventDate "2024.02.13"]
[EventType "tourn"]
[EventCountry "USA"]
[SourceTitle "playchess.com"]
[Source "ChessBase"]
[SourceQuality "1"]
[TimeControl "5400+30"]

{[%evp 11,45,22,18,0,0,0,0,0,0,0,27,30,106,123,101,55,98,7,11,10,22,20,19,8,8,18,8,14,15,12,56,52,53,44,51,23]} 1. d4 {[%emt 0:00:00]} Nf6 {[%emt 0:02:25]} 2. c4 {[%emt 0:00:02]} e6 {[%emt 0:00:04]} 3. g3 {[%emt 0:00:02]} d5 {[%emt 0:00:13]} 4. Nf3 {[%emt 0:00:02]} a6 {[%emt 0:00:10]} 5. Bg2 {[%emt 0:00:03]} dxc4 {[%emt 0:00:04]} 6. O-O {[%emt 0:00:08]} Nc6 {[%emt 0:00:04]} 7. Qc2 {[%emt 0:00:04]} Nxd4 {[%emt 0:01:46]} 8. Nxd4 {[%emt 1:34:09]} Qxd4 {[%emt 0:00:06]} 9. Nd2 {[%emt 0:00:00] The position is equal.} c3 {[%emt 0:05:44]} 10. bxc3 {[%emt 0:00:00]} Qe5 {[%emt 0:04:33]} 11. Rb1 {[%emt 0:00:00][%mdl 1024] White has compensation.} Rb8 {[%emt 0:02:53]} (11... Bc5 $11 {remains equal.}) 12. Nc4 $16 {[%emt 0:02:00]} Qc5 {[%emt 0:01:29]} 13. Qb3 {[%emt 0:00:00] White is more active.} ({Better is} 13. Qd3 $16) 13... Nd5 {[%emt 0:03:04]} 14. e4 {[%emt 0:00:00]} (14. a4 $16) 14... Nb6 $1 $11 {[%emt 1:14:55]} 15. Nxb6 {[%emt 0:00:00]} Qxb6 {[%emt 0:00:00]} 16. Qxb6 {[%emt 0:00:00]} cxb6 {[%emt 0:00:00]} 17. Bf4 {[%emt 0:00:00]} Ra8 {[%emt 0:00:00]} 18. Rxb6 {[%emt 0:00:00]} Bc5 {[%emt 0:00:00] Against Be3} 19. Rb2 {[%emt 0:00:00]} b5 {[%emt 0:00:00]} 20. Rd1 {[%emt 0:00:00][%cal Oc3c4]} Bb7 {[%emt 0:00:00][%cal Bc8b7,Bb7c6,Bc6b5][%mdl 32]} 21. a4 {[%emt 0:00:00] White is slightly better.} Bc6 {[%emt 0:00:00]} 22. axb5 {[%emt 0:00:00]} Bxb5 {[%emt 0:00:00]} 23. Bf1 {[%emt 0:00:00] Weighted Error Value: White=0.17 (very precise) /Black=0.17 (very precise) .  Mistake:       	White=2     	Black=1      Inaccurate:     	White=1     	Black=3      OK:         	White=9     	Black=3      Best:        	---       	Black=2      Strong:       	---       	Black=1} 1/2-1/2

[Event "Presidents Day IM-Norm 2024"]
[Site "Santa Clara"]
[Date "2024.02.20"]
[Round "9.3"]
[White "Stevens, Adam B"]
[Black "Raja Harshit"]
[Result "1/2-1/2"]
[ECO "E11"]
[WhiteElo "1878"]
[BlackElo "2508"]
[Annotator "RC"]
[PlyCount "44"]
[EventDate "2024.02.13"]
[EventType "tourn"]
[EventCountry "USA"]
[SourceTitle "playchess.com"]
[Source "ChessBase"]
[SourceQuality "1"]
[TimeControl "5400+30"]

1. d4 {[%emt 0:00:02]} Nf6 {[%emt 0:05:44]} 2. c4 {[%emt 0:00:07]} e6 {[%emt 0:00:04]} 3. Nf3 {[%emt 0:00:04]} d5 {[%emt 0:00:09]} 4. g3 {[%emt 0:00:07]} Bb4+ {[%emt 0:00:13]} 5. Bd2 {[%emt 0:00:06]} a5 {[%emt 0:00:05]} 6. Qc2 {[%emt 0:00:16]} O-O {[%emt 0:00:36]} 7. Bg2 {[%emt 0:00:49]} c5 {[%emt 0:00:27]} 8. cxd5 {[%emt 0:00:15]} cxd4 {[%emt 0:00:05]} 9. Nxd4 {[%emt 0:00:13]} Qb6 {[%emt 0:00:08]} 10. e3 {[%emt 0:00:02]} exd5 {[%emt 0:00:14]} 11. O-O {[%emt 0:00:06]} Nc6 {[%emt 0:00:08]} 12. Nxc6 {[%emt 0:00:06]} bxc6 {[%emt 0:00:03]} 13. Rc1 {[%emt 0:00:04]} Bd7 {[%emt 0:01:12]} 14. Nc3 {[%emt 0:00:05]} h5 {[%emt 0:00:59]} 15. Na4 {[%emt 0:00:50]} Qd8 {[%emt 0:03:11]} 16. Bxb4 {[%emt 0:01:50]} axb4 {[%emt 0:00:05]} 17. Nc5 {[%emt 0:00:02]} Bc8 {[%emt 0:03:07]} 18. Nb3 {[%emt 0:03:41]} Ra6 {[%emt 0:01:33]} 19. Nc5 {[%emt 0:01:09]} Rb6 {[%emt 0:01:46]} 20. Na4 {[%emt 0:00:15]} Rb8 {[%emt 0:00:13]} 21. Qxc6 {[%emt 0:03:48]} d4 {[%emt 0:01:39]} 22. exd4 {[%emt 0:07:51]} Bb7 {[%emt 0:03:26]} 1/2-1/2

[Event "Presidents Day IM-Norm 2024"]
[Site "Santa Clara"]
[Date "2024.02.20"]
[Round "9.4"]
[White "Cardoso Cardoso, Jose Gabriel"]
[Black "Bansal, Advay"]
[Result "1-0"]
[ECO "D80"]
[WhiteElo "2477"]
[BlackElo "2253"]
[Annotator "TA"]
[PlyCount "99"]
[EventDate "2024.02.13"]
[EventType "tourn"]
[EventCountry "USA"]
[SourceTitle "playchess.com"]
[Source "ChessBase"]
[SourceQuality "1"]
[TimeControl "5400+30"]

{[%evp 9,99,21,16,0,13,9,16,22,4,7,8,10,28,14,25,8,65,72,73,69,112,68,68,67,64,66,66,51,35,32,24,18,13,25,19,0,0,0,0,0,0,0,0,0,0,0,0,0,0,0,0,0,0,0,0,0,10,0,0,0,0,0,0,0,0,0,0,0,0,0,0,0,0,0,0,0,0,0,0,0,478,433,606,593,590,585,562,550,522,495,550,543]} 1. d4 {[%emt 0:00:48]} Nf6 {[%emt 0:00:09]} 2. c4 {[%emt 0:00:19]} g6 {[%emt 0:00:09]} 3. Nc3 {[%emt 0:00:22]} d5 {[%emt 0:00:09]} 4. h4 {[%emt 0:00:06]} c6 {[%emt 0:02:19]} 5. cxd5 {[%emt 0:00:10]} cxd5 {[%emt 0:00:08]} 6. Nf3 {[%emt 0:00:26] D80: Grünfeld: Unusual White 4th moves and 4 Bg5.} Bg7 {[%emt 0:00:45]} 7. Bf4 {[%emt 0:00:15]} Nc6 {[%emt 0:02:29]} 8. e3 {[%emt 0:00:11]} O-O {[%emt 0:00:11]} 9. Qb3 {[%emt 0:01:04]} Na5 {[%emt 0:03:52]} 10. Qa3 {[%emt 0:00:06]} b6 {[%emt 0:10:31]} 11. Ne5 $146 {[%emt 0:07:33]} ({Predecessor:} 11. Rc1 Bb7 12. Be2 Nc4 13. Qb3 Rc8 14. O-O a6 15. a4 e6 16. Rc2 Nd7 17. Rd1 {½-½ Xiong,J (2674)-Ipatov,A (2660) Saint Louis Winter-A 2017 (3)}) 11... Bb7 {[%emt 0:02:24]} 12. Be2 {[%emt 1:25:10]} Nc6 {[%emt 0:12:10]} ({Black should play} 12... Rc8 $11) 13. h5 {[%emt 0:00:00]} e6 {[%emt 0:05:16]} 14. hxg6 {[%emt 0:00:00]} hxg6 {[%emt 0:00:40]} 15. Ba6 {[%emt 0:00:00]} Qc8 $1 {[%emt 0:04:43]} 16. Nxc6 {[%emt 0:00:00]} Qxc6 {[%emt 0:00:07]} 17. Bb5 {[%emt 0:00:00]} Qc8 {[%emt 0:00:12]} 18. Qe7 {[%emt 0:00:00]} a6 {[%emt 0:19:05]} 19. Be5 {[%emt 0:00:00]} Qd8 $1 {[%emt 0:02:18]} 20. Qxb7 {[%emt 0:00:00]} axb5 {[%emt 0:00:03]} 21. Nxb5 {[%emt 0:00:00]} Ne4 {[%emt 0:04:09] ...Qg5 would now be deadly.} 22. Qc7 {[%emt 0:00:00]} Qg5 {[%emt 0:03:30]} 23. Bxg7 {[%emt 0:00:00] Be5 is the strong threat.} (23. Qxb6 $2 Qxg2 24. Rf1 Bxe5 25. dxe5 Rfb8 $19) 23... Qxg2 {[%emt 0:01:33]} 24. Rh2 $1 {[%emt 0:00:00]} Qg1+ {[%emt 0:00:14]} 25. Ke2 {[%emt 0:00:00]} Qxa1 {[%emt 0:01:33]} 26. Be5 {[%emt 0:00:00][%csl Ge5][%cal Rh2h8]} Qxb2+ {[%emt 0:01:46]} (26... Qxa2 27. Rh8#) 27. Kf1 {[%emt 0:00:00][%csl Ge5][%cal Rh2h8]} (27. Kf3 $5 Ng5+ $8 (27... Qxb5 28. Rh8#) 28. Kf4 $11) 27... Ng3+ $1 {[%emt 0:01:07]} (27... Qxb5+ 28. Kg2) 28. Bxg3 {[%emt 0:00:00][%cal Og3e5] Be5! would kill now.} Qb1+ $1 {[%emt 0:00:06]} (28... Qxb5+ $2 29. Kg2 Qe2 (29... Rxa2 $2 30. Be5 $18) 30. Qe7 $18) 29. Kg2 {[%emt 0:00:00][%cal Og3e5]} Qe4+ $1 {[%emt 0:00:05]} (29... Qxb5 30. Be5) 30. Kf1 {[%emt 0:00:00] Intending Be5 and mate.} Rxa2 {[%emt 0:09:12] Strongly threatening ...Qf3.} (30... Rfc8 31. Be5 Qd3+ 32. Kg2 Qe4+ 33. Kg3) 31. Nc3 {[%emt 0:00:00]} Ra1+ {[%emt 0:05:31]} 32. Ke2 {[%emt 0:00:00]} Qg4+ {[%emt 0:01:32]} 33. Kd2 {[%emt 0:00:00][%cal Og3e5] And now Be5! would win.} Rfa8 {[%emt 0:00:56][%cal Oa8a2] ( -> ...R8a2+!)} 34. f3 {[%emt 0:02:37]} (34. Qxb6 R8a2+ 35. Nxa2 Qd1+ 36. Kc3 Qe1+ 37. Kb3 Rb1+ 38. Ka4 Rxb6) 34... Qxf3 {[%emt 0:03:38]} 35. Qe5 $1 {[%emt 0:00:10][%csl Ge5][%cal Rh2h8] Wards off R1a2+} (35. Rf2 $2 R8a2+ 36. Nxa2 Rxa2+ $19) 35... R8a2+ {[%emt 0:01:57]} 36. Nxa2 {[%emt 0:00:06]} Rxa2+ {[%emt 0:00:14]} 37. Kc3 {[%emt 0:00:09]} Rxh2 {[%emt 0:00:10]} 38. Bxh2 {[%emt 0:00:06]} Qd1 {[%emt 0:01:13]} 39. Qb8+ {[%emt 0:01:34]} Kh7 {[%emt 0:00:05]} 40. Be5 {[%emt 0:00:08][%csl Ge5][%cal Rb8h8]} Qc1+ {[%emt 0:01:16]} 41. Kb3 {[%emt 0:09:40][%csl Ge5][%cal Rb8h8]} Qc4+ {[%emt 0:02:37]} 42. Kb2 {[%emt 0:00:00][%csl Ge5][%cal Rb8h8]} Qe2+ {[%emt 0:00:30]} 43. Kc3 {[%emt 0:00:00][%csl Ge5][%cal Rb8h8]} Qe1+ {[%emt 0:00:50]} 44. Kb3 {[%emt 0:00:00][%csl Ge5][%cal Rb8h8]} Qxe3+ $2 {[%emt 0:00:33][%mdl 8192]} (44... f6 $11 {and Black has nothing to worry.} 45. Qc7+ (45. Bxf6 Qb1+ 46. Ka4 Qd1+ 47. Kb4 Qb1+ 48. Ka4 Qa1+ 49. Kb4 Qb1+ 50. Ka4 $11) 45... Kh6 46. Bxf6 Qb1+ 47. Ka3 Qa1+ 48. Kb3 Qb1+ 49. Ka4 (49. Ka3 Qa1+ 50. Kb3 Qb1+ $11) 49... Qa1+ 50. Kb5 Qf1+ 51. Kc6 Qxf6 52. Qh2+ Kg7 (52... Kg5 53. Qg2+ Kh6 54. Qh2+ Kg7 55. Qc7+ Kh8 56. Qb8+ Kh7 57. Kxb6 $17) 53. Qc7+ Kg8 54. Qc8+ Kf7 55. Qc7+ Qe7 56. Qf4+ (56. Qxe7+ Kxe7 57. Kb5 g5 58. e4 dxe4 59. Kc4 g4 60. d5 exd5+ 61. Kd4 g3 62. Ke3 Ke6 63. Ke2 d4 64. Ke1 e3 65. Ke2 g2 66. Kd1 g1=Q+ 67. Ke2 Qg2+ 68. Kd3 e2 69. Kd2 b5 70. Kd3 e1=Q 71. Kxd4 Qd5#) 56... Kg8 57. Kxb6 Qd8+ 58. Kb5 g5) 45. Ka4 $18 {[%emt 0:00:00][%csl Ge5][%cal Rb8h8]} g5 {[%emt 0:00:16]} 46. Qh8+ {[%emt 0:00:00]} ({Not} 46. Qxb6 Qf3 $14) 46... Kg6 {[%emt 0:00:04]} 47. Qf6+ {[%emt 0:00:00]} Kh5 {[%emt 0:00:12]} 48. Qxf7+ {[%emt 0:00:00]} Kh4 {[%emt 0:00:17]} 49. Qxe6 {[%emt 0:00:00]} Qe4 {[%emt 0:00:56]} 50. Kb5 {[%emt 0:00:00]} 1-0